Cogmind - Beta 9.4 @@@ ROGUE MODE // 2020.04.05 @ 09:54:37 Player: Eric Result: Destroyed by G-34 Mercenary with Small Laser Performance ------------- Evolutions (0) 0 Regions Visited (2) 400 Robots Destroyed (24) 120 Value Destroyed (499) 499 Prototype IDs (0) 0 Alien Tech Used (0) 0 Bonus (0) 0 TOTAL SCORE: 1019 Bonus ------- None Cogmind --------- Core Integrity 0/250 Matter 20/300 Energy 100/100 System Corruption 0% Temperature Cool (6) Movement Core (300) Ox5 Location -10/Mines Parts ------- > --- POWER (1) -------- (None) > --- PROPULSION (2) --- (None) > --- UTILITY (2) ------ Large Storage Unit Targeting Computer > --- WEAPON (2) ------- (None) > --- INVENTORY (10) --- Medium Storage Unit Large Matter Pod (0) Light Assault Rifle Grenade Launcher Peak State ------------ > --- POWER ------------ Light Ion Engine > --- PROPULSION ------- Light Treads Light Treads > --- UTILITY ---------- Heat Sink Large Storage Unit > --- WEAPON ----------- Light Assault Rifle Light Assault Rifle > --- INVENTORY -------- Light Ion Engine Aluminum Leg Aluminum Leg Medium Storage Unit Large Matter Pod EM Pulse Gun Light Assault Rifle Grenade Launcher [Rating: 7] Favorites ----------- Power Light Ion Engine Engine Light Ion Engine Propulsion Light Treads Treads Light Treads Leg Aluminum Leg Utility Large Storage Unit Device Heat Sink Storage Large Storage Unit Processor Targeting Computer Weapon Light Assault Rifle Energy Gun EM Pulse Gun Ballistic Gun Light Assault Rifle Launcher Grenade Launcher Build | -11 -10 -10 ------- Run | Scr Mat Min Slots Evolved . | . . . Power . | . . . Propulsion . | . . . Utility . | . . . Weapon . | . . . Parts Attached 29 | 6 11 12 Power 5 | 1 3 1 Engine 5 | 1 3 1 Core . | . . . Reactor . | . . . Propulsion 9 | 2 1 6 Treads 5 | 2 1 2 Leg 4 | . . 4 Wheel . | . . . Hover . | . . . Flight . | . . . Utility 5 | 1 3 1 Device 1 | . 1 . Storage 3 | 1 2 . Processor 1 | . . 1 Hackware . | . . . Protection . | . . . Artifact . | . . . Weapon 10 | 2 4 4 Energy Gun 3 | 1 1 1 Energy Cannon . | . . . Ballistic Gun 4 | 1 1 2 Ballistic Cannon . | . . . Launcher 3 | . 2 1 Special Weapon . | . . . Impact Weapon . | . . . Slashing Weapon . | . . . Piercing Weapon . | . . . Special Melee Weapon . | . . . Unidentified Prototypes . | . . . Parts Lost 10 | . . 10 Power 2 | . . 2 Propulsion 5 | . . 5 Utility . | . . . Weapon 3 | . . 3 Highest Loss Streak 6 | . . 6 Average Slot Usage (%) 92 | . 89 94 Engine 12 | . 13 12 Treads 25 | . 27 23 Leg 2 | . . 3 Device 2 | . 4 1 Storage 14 | . 14 14 Processor 7 | . . 12 Energy Gun 2 | . 4 2 Ballistic Gun 12 | . 17 10 Launcher 10 | . 6 12 Naked Turns . | . . . Heaviest Build 24 | 10 24 24 Greatest Support 40 | 40 40 40 Greatest Overweight (x) 7 | . . 7 Average Overweight (x) . | . . . Largest Inventory Capacity 10 | 6 10 10 Average Capacity 9 | 5 9 10 Most Carried 10 | 6 9 10 Average Carried 7 | 3 7 7 Final Capacity 10 | 6 10 10 Final Carried 9 | 4 9 4 Class Distribution -------------------- 100% | Mutant Dominant Class ---------------- Mutant | -10/Materials Mutant | -10/Mines Resources | -11 -10 -10 ----------- Run | Scr Mat Min Matter Collected 448 | 225 194 29 Remotely . | . . . Salvage Created 376 | . 279 97 Parts 35 | . 27 8 Haulers Intercepted 1 | . 1 . Recyclers Shooed . | . . . Parts Field Recycled . | . . . Retrieved Matter . | . . . Parts Self-Destructed . | . . . Prevented . | . . . Kills | -11 -10 -10 ------- Run | Scr Mat Min Combat Hostiles Destroyed 20 | . 13 7 Guns 8 | . 4 4 AOE 12 | . 9 3 Classes Destroyed 7 | . 6 1 Builder 1 | . 1 . Hauler 1 | . 1 . Recycler 1 | . 1 . Watcher 1 | . 1 . Swarmer 12 | . 9 3 Grunt 6 | . 4 2 Sentry 2 | . . 2 Best Kill Streak 4 | . 4 3 Combat Bots Only 3 | . 3 3 Max Kills in Single Turn 4 | . 4 1 Gunslinging . | . . . Exploded 3 | . 3 1 Melee . | . . . Uniques/NPCs Destroyed . | . . . Combat | -11 -10 -10 -------- Run | Scr Mat Min Damage Taken 1321 | . 296 1025 Core 258 | . 60 198 Absorbed by Shields . | . . . Core Remaining (%) 100 | 100 . . Volleys Fired 42 | . 16 26 Largest 2 | . 2 2 Hottest 60 | . 60 50 Shots Fired 70 | . 32 38 Gun 45 | . 19 26 Cannon . | . . . Launcher 25 | . 13 12 Special . | . . . Kinetic 38 | . 17 21 Thermal . | . . . Explosive 25 | . 13 12 Electromagnetic 7 | . 2 5 Robot Hit Streak 8 | . 5 8 Robot Miss Streak 2 | . 1 2 Penetration Max . | . . . Secondary Targets . | . . . Shots Hit Robots 37 | . 12 25 Core Hits 46 | . 27 19 Critical Hits . | . . . Critical Kills . | . . . Critical Parts Destroyed . | . . . Melee Attacks . | . . . Impact . | . . . Slashing . | . . . Piercing . | . . . Sneak Attacks . | . . . Combat Hostiles . | . . . Follow-up Attacks . | . . . Damage Inflicted 1495 | . 862 633 Guns 264 | . 87 177 Cannons . | . . . Explosions 1231 | . 775 456 Melee . | . . . Ramming . | . . . Kinetic 197 | . 64 133 Thermal 88 | . . 88 Explosive 1143 | . 775 368 Electromagnetic 67 | . 23 44 Impact . | . . . Slashing . | . . . Piercing . | . . . Highest Corruption . | . . . Average Corruption . | . . . Corruption Purged . | . . . Overload Shots . | . . . Overflow Damage 22 | . 13 9 Projectiles . | . . . Explosions 22 | . 13 9 Melee . | . . . Knockbacks . | . . . Impact . | . . . Kinetic . | . . . Secondary . | . . . Self-Inflicted Damage 111 | . 22 89 Shots 7 | . 1 6 Rammed . | . . . Targets Rammed . | . . . Kicked . | . . . Crushed . | . . . Highest Temperature 32 | . 20 32 Average Temperature 11 | . 8 13 Received Heat Transfer 519 | . 48 471 Siege Activations . | . . . Robots Corrupted . | . . . Combat Hostiles . | . . . Parts Fried . | . . . Impact Corruptions . | . . . Robots Melted . | . . . Combat Hostiles . | . . . Parts Melted . | . . . Heat Transferred 150 | . . 150 Parts Sabotaged . | . . . Parts Stolen . | . . . Parts Stripped . | . . . Power Chain Reactions 1 | . . 1 Missiles Intercepted . | . . . Alert | -11 -10 -10 ------- Run | Scr Mat Min Peak Influence 215 | . 215 140 Average Influence 61 | . 88 52 Maximum Alert Level 1 | . 1 . Low Security (%) 98 | 100 96 100 Level 1 1 | . 3 . Level 2 . | . . . Level 3 . | . . . Level 4 . | . . . Level 5 . | . . . High Security . | . . . Max Security . | . . . Squads Dispatched . | . . . Investigation . | . . . Extermination . | . . . Reinforcement . | . . . Assault . | . . . Garrison . | . . . Intercept . | . . . Construction Impeded . | . . . Haulers Reinforced . | . . . Stealth | -11 -10 -10 --------- Run | Scr Mat Min Distress Signals 1 | . 1 . Communications Jammed . | . . . Distress Signals . | . . . Times Spotted 22 | . 13 9 Peak Tracking Total 3 | . 3 3 Tactical Retreats 1 | . 1 . Traps | -11 -10 -10 ------- Run | Scr Mat Min Traps Triggered 3 | . 3 . Indirectly . | . . . Trap Hack Attempts . | . . . Triggered . | . . . Disarmed . | . . . Reprogrammed . | . . . Reused . | . . . Traps Extracted . | . . . Installed . | . . . Triggered . | . . . Machines | -11 -10 -10 ---------- Run | Scr Mat Min Machines Disabled 3 | . 1 2 Max in Single Turn 1 | . 1 1 Machines Sabotaged . | . . . Garrisons Compromised . | . . . Overloaded Fab Kills . | . . . Fab Network Shutdowns . | . . . Hacking | -11 -10 -10 --------- Run | Scr Mat Min Machines Accessed . | . . . Terminals . | . . . Fabricators . | . . . Repair Stations . | . . . Recycling Units . | . . . Scanalyzers . | . . . Garrison Access . | . . . Total Hacks . | . . . Successful . | . . . Failed . | . . . Catastrophic . | . . . Database Lockouts . | . . . Manual . | . . . Terminals . | . . . Fabricators . | . . . Repair Stations . | . . . Recycling Units . | . . . Scanalyzers . | . . . Garrison Access . | . . . Terminal Hacks . | . . . Fabricator Hacks . | . . . Repair Station Hacks . | . . . Recycling Unit Hacks . | . . . Scanalyzer . | . . . Garrison Access Hacks . | . . . Unauthorized Hacks . | . . . Terminals . | . . . Fabricators . | . . . Repair Stations . | . . . Recycling Units . | . . . Scanalyzers . | . . . Garrison Access . | . . . Data Cores Recovered . | . . . Used . | . . . Hacking Detections . | . . . Full Trace Events . | . . . Feedback Events . | . . . Feedback Blocked . | . . . Robot Schematics Acquired . | . . . Robots Built . | . . . Matter . | . . . Time . | . . . Total Robot Build Rating . | . . . Part Schematics Acquired . | . . . Parts Built . | . . . Matter . | . . . Time . | . . . Total Part Build Rating . | . . . Parts Repaired . | . . . Time . | . . . Parts Recycled . | . . . Recycled Matter . | . . . Retrieved Matter . | . . . Retrieved Components . | . . . Parts Scanalyzed . | . . . Part Schematics Acquired . | . . . Parts Damaged . | . . . Bothacking | -11 -10 -10 ------------ Run | Scr Mat Min Used RIF Installer . | . . . Robots Hacked . | . . . Non-combat . | . . . Combat . | . . . Robot Hacks Applied . | . . . Relay Couplers Released . | . . . Robots Rewired . | . . . Allies Hacked . | . . . Hacks Repelled . | . . . Allies | -11 -10 -10 -------- Run | Scr Mat Min Total Allies . | . . . Largest Group . | . . . Highest-Rated Group . | . . . Highest-Rated Ally . | . . . Total Orders . | . . . Ally Attacks . | . . . Total Damage . | . . . Kills . | . . . Allies Corrupted . | . . . Allies Melted . | . . . Intel | -11 -10 -10 ------- Run | Scr Mat Min Robot Analysis Total . | . . . Derelict Logs Recovered 1 | . . 1 Drone Launches . | . . . Drone Recoveries . | . . . Exploration | -11 -10 -10 ------------- Run | Scr Mat Min Turns Passed 1699 | 97 563 1039 Spaces Moved 964 | 58 300 606 Core 18 | 12 . 6 Treads 876 | 46 300 530 Legs 70 | . . 70 Wheels . | . . . Hover . | . . . Flight . | . . . Fastest Speed 50 | 50 160 120 Average Speed 157 | 137 160 158 Slowest Speed 400 | 160 160 400 Overloaded Moves . | . . . Propulsion Burnouts . | . . . Robots Hopped . | . . . Cave-ins Triggered . | . . . Exploration Rate (%) 50 | 5 57 89 Regions Visited 2 Branch Regions 1 Pre-discovered Areas . | . . . Known Exits Taken . | . . . Unknown Exits Taken 2 | 1 1 . Scrap Searched . | . . . Spaces Dug . | . . . Terrain Destroyed 163 | . 79 84 Melee . | . . . Projectile . | . . . AOE 163 | . 79 84 Actions | -11 -10 -10 --------- Run | Scr Mat Min Total 1079 | 76 354 649 Wait 12 | . 12 . Move 962 | 57 299 606 Hop . | . . . Pick Up 25 | 11 12 2 Fast Attach 2 | 1 . 1 Attach 16 | 5 5 6 Detach 1 | . 1 . Swap 11 | . 6 5 Drop 8 | 2 3 3 Fire 42 | . 16 26 Melee . | . . . Ram . | . . . Kick . | . . . Crush . | . . . Escape Stasis . | . . . Rewire . | . . . Trap . | . . . Miscellaneous . | . . . Route ------- -11/Scrapyard -10/Materials (discovered 2 exits: [*Mat] / [*Min]) -10/Mines (discovered 1 exit: [*Mat]) History --------- Turn | Location | Event 43 | -11/Scrapyard | Discovered new exit (range 15) 98 | -11/Scrapyard | Entered Materials 303 | -10/Materials | Discovered new exit (range 4) 306 | -10/Materials | Build established: Mutant 530 | -10/Materials | Discovered new exit (range 16) 661 | -10/Materials | Entered Mines 719 | -10/Mines | Learned Materials terminal intel 881 | -10/Mines | Discovered new exit (range 13) 1288 | -10/Mines | Core integrity fell below 50% 1635 | -10/Mines | Core integrity fell below 20% 1646 | -10/Mines | Lost 6 parts (1p2n3w) 1700 | -10/Mines | Destroyed by G-34 Mercenary with Small Laser Last Messages --------------- 01364_ U-05 Engineer lays Concrete. 01368_ K-01 Serf collects debris. 01369_ U-05 Engineer builds a Wall. 01373_ The unstable cave ceiling collapses. 01418_ S-10 Pest destroyed. 01420_ Plasma Injector explodes. 01433_ Chain reaction triggered in Lgt. Ion Engine. 01433_ S-10 Pest destroyed. 01438_ K-01 Serf collects debris. 01446_ Acquired 7 matter. 01448_ K-01 Serf collects debris. 01457_ Acquired 10 matter. 01459_ K-01 Serf collects debris. 01542_ U-05 Engineer lays Concrete. 01572_ Lgt. Treads destroyed. 01584_ EM Pulse Gun destroyed. 01594_ Grenade Launcher destroyed. 01607_ Lgt. Ion Engine destroyed. 01615_ Lgt. Assault Rifle destroyed. 01671_ Aluminum Leg destroyed. Map ----- +----------------------------------------------------+ | ?????# #????????????????????????## #? | | ###### ###?????????????????????????# #? | | #???????????????????????????## ##? | | #######?????????????????????????????###?? | | #???????????????????????################? | | #???????????????????????# #? | | #???????????????????????# #? | | ###?????????????????????# """ """ """ #? | | #?????????????######### """ """ """ #? | | ## #????????????# """ """ """ #? | | ?# #????????????# #??#### #? | | ?# #????????????# #?????# """ """ """ #? | | ?# #????????????# ##????# """ """ """ #? | | ?# #?????????#### ##???# """ """ """ #? | | ?# #???????### #???# #? | | ?# #??????## #???# #? | | ?# #?????## #????#### ##########? | | ## ####?## #????????# #?????????? | | ### #????????# #?????????? | | k ##???????# #?????????? | | #### #### ######### #?????????? | | ???## ##??###t ## #?????????? | | #???# #?????## gg #?????????? | | ##### #??????## ###?????????? | | ##???????## ##???????????? | | ##?????????# @ #????????????? | | ## ##??????????# #????????????? | | ## #???????????# ##????????????? | | ### ##??????????# #?????????????? | | #?#####???????????# ## #?????????????? | | ##?????????????????## ## #?????????????? | | #???????????????????# ## #?????????????? | | ????????????????????# ## #?????????????? | | ???????????????????? ## #?????????????? | | ???????????????????## ### #?????????????? | | ????????????????????# ??#t #?????????????? | | ????????????????????# ??# #?????????????? | | ????????????????????? ??? #?????????????? | | ????????????????????? ??? ??????????????? | | ?????????????????????????$ ??????????????? | | ????????????????????????? ??????????????? | | ?????????????????????????????????????????? | | ?????????????????????????????????????????? | | ?????????????????????????????????????????? | | ?????????????????????????????????????????? | | ?????????????????????????????????????????? | | ?????????????????????????????????????????? | | ?????????????????????????????????????????? | | ?????????????????????????????????????????? | | ?????????????????????????????????????????? | +----------------------------------------------------+ Best States ------------- Heat Dissipation 35 Energy Generation 10 Energy Capacity 125 Matter Stores 291 Matter Capacity 300 Sight Range 16 Terrain Scan Density 10 Evasion (%) 50 Targeting Accuracy 5 Recoil Reduction 2 Item Schematics ----------------- None Robot Schematics ------------------ None Fabricated ------------ Nothing Alien Tech Used ----------------- None Achievements -------------- None Challenges ------------ None Game ------ Seed ShieldCatalystWarhead Manual? 0 Play Time 00:14:16 Cumulative 15.1 hours Start 2020.04.05 @ 09:42:26 End 2020.04.05 @ 09:54:37 Sessions 1 Manual Loads 0 Difficulty Rogue Special Mode None Game No. 17 Rogue 17 Adventurer 0 Explorer 0 Win Type - Total 0 Types 0/0/0/0/0/0/0 Lore% 9 Gallery% 18 Achievement% 11 Wizard Run 0 Options --------- ASCII 1 Keyboard 0 Movement Arrows Keybinds 0 Fullscreen 1 Font 24/Crisp Map View 76x50 Tactical HUD 1 Map Filters NONE Filters NONE Steam 0 RUN: a14d2e47-4ae3-41e7-b5fe-bcb7c926957a